bitfinex/quotes_BTCUSD_20230115
["timestamp","ask_amount","ask_price","bid_price","bid_amount"]
[1673742390948,1.10484483,20923.0,20920.0,0.24289055]
[1673742391218,1.58278683,20923.0,20920.0,0.07135895]
[1673742391465,1.58278683,20923.0,20920.0,0.0707736]
[1673742391729,1.65278683,20923.0,20919.0,0.44497631]
[1673742391981,1.65278683,20923.0,20919.0,0.34376236]
[1673742392230,1.65278683,20923.0,20919.0,0.55711765]
[1673742392231,0.52822691,20922.0,20919.0,0.55711765]
[1673742392480,0.52822691,20922.0,20919.0,0.51817887]
[1673742392741,0.477917,20925.0,20920.0,0.041346]
[1673742393022,0.48304616,20926.0,20921.0,0.41717202]
[1673742393254,0.51722104,20925.0,20922.0,0.20632695]
[1673742393502,0.51722104,20925.0,20922.0,0.58167255]
[1673742393503,0.085,20923.0,20922.0,0.58167255]
[1673742393755,0.51722104,20925.0,20922.0,1.30139127]
[1673742394021,0.51722104,20925.0,20922.0,1.03664862]
[1673742394278,0.51722104,20925.0,20923.0,0.015598]
[1673742394529,0.48873933,20927.0,20923.0,0.69128429]
[1673742394782,0.477844,20928.0,20923.0,1.14797342]
[1673742395037,0.477844,20928.0,20924.0,0.17426359]
[1673742395282,0.078,20925.0,20924.0,0.17426359]
[1673742395535,1.07964571,20928.0,20924.0,1.06169251]
[1673742395781,1.07964571,20928.0,20924.0,1.2359561]
[1673742396046,0.57814011,20927.0,20924.0,1.2359561]
[1673742396304,0.57814011,20927.0,20924.0,1.06169251]
[1673742396802,0.19072595,20927.0,20922.0,0.97371183]
[1673742397063,0.19072595,20926.0,20922.0,1.14640516]
[1673742397585,0.477845,20928.0,20924.0,0.0673]
[1673742397850,0.67713,20930.0,20925.0,0.18985559]
[1673742397851,0.98950414,20929.0,20925.0,0.18985559]
[1673742398117,0.51168114,20929.0,20926.0,0.17426359]
[1673742398867,0.51168114,20929.0,20926.0,0.477869]
[1673742399639,0.58968114,20929.0,20926.0,0.477869]
[1673742399890,0.429,20931.0,20926.0,0.955743]
[1673742400149,0.078,20929.0,20927.0,0.51471992]
[1673742400401,0.078,20929.0,20927.0,0.99256992]
[1673742400911,0.63332856,20933.0,20927.0,1.12996459]
[1673742401178,0.63332856,20933.0,20928.0,0.41764659]
[1673742401179,0.078,20931.0,20928.0,0.41764659]
[1673742401449,0.078,20931.0,20929.0,1.44899]
[1673742401721,0.078,20931.0,20929.0,1.75045397]
[1673742402063,0.078,20931.0,20930.0,0.0673]
[1673742402233,0.63332856,20933.0,20930.0,0.0673]
[1673742402493,0.78623005,20935.0,20930.0,1.022866]
[1673742402746,0.6426143,20934.0,20931.0,0.71153897]
[1673742403037,0.6426143,20934.0,20931.0,1.01502538]
[1673742403777,0.078,20934.0,20931.0,1.50178538]
[1673742405033,0.078,20934.0,20932.0,0.37645766]
[1673742406028,0.59943843,20934.0,20931.0,0.477739]
[1673742406520,0.67743843,20934.0,20932.0,0.009]
[1673742407531,0.67743843,20934.0,20932.0,0.42436958]
[1673742408029,0.59943843,20934.0,20931.0,0.486739]
[1673742408283,0.94374337,20933.0,20930.0,0.97961206]
[1673742408536,0.81431232,20933.0,20930.0,0.50184906]
[1673742408794,0.62358637,20933.0,20932.0,0.009]
[1673742409307,0.94374337,20933.0,20932.0,0.009]
[1673742409559,0.94374337,20933.0,20931.0,0.009]
[1673742409816,0.477698,20934.0,20931.0,0.43289725]
[1673742410372,1.45051424,20935.0,20931.0,0.60716084]
[1673742410641,0.00553005,20935.0,20931.0,0.65201559]
[1673742410883,0.00553005,20935.0,20931.0,1.12977559]
[1673742411401,0.00553005,20935.0,20932.0,0.003]
[1673742411402,0.043,20933.0,20932.0,0.003]
[1673742411673,0.55713602,20935.0,20931.0,0.955499]
[1673742411978,0.63513602,20935.0,20931.0,1.13876259]
[1673742412238,0.55713602,20935.0,20931.0,0.955499]
[1673742412491,0.043,20933.0,20932.0,0.003]
[1673742412758,0.55713602,20935.0,20931.0,0.477739]
[1673742413015,0.55713602,20935.0,20932.0,1.50518617]
[1673742413770,0.63513602,20935.0,20932.0,1.50518617]
[1673742414020,0.71313602,20935.0,20932.0,1.51418617]
[1673742414534,0.55713602,20935.0,20932.0,1.50518617]
[1673742414791,0.60013602,20935.0,20932.0,1.50818617]
[1673742415046,0.00553005,20935.0,20932.0,1.50518617]
[1673742415310,0.00753005,20935.0,20932.0,1.53318617]
[1673742415558,0.00753005,20935.0,20933.0,0.37421537]
[1673742415862,0.00753005,20935.0,20933.0,0.85192237]
[1673742416106,0.198256,20935.0,20932.0,0.028]
[1673742416341,0.97085216,20934.0,20932.0,0.028]
[1673742416593,0.320157,20933.0,20930.0,0.46087309]
[1673742416861,0.195519,20932.0,20930.0,0.46087309]
[1673742417109,1.12839616,20934.0,20932.0,0.00479304]
[1673742417368,1.12839616,20934.0,20932.0,0.02479304]
[1673742417631,0.320157,20933.0,20932.0,0.00479304]
[1673742417899,0.0145,20933.0,20932.0,0.00479304]
[1673742418154,0.64175611,20933.0,20932.0,0.00479304]
[1673742418461,0.64175611,20933.0,20932.0,0.09779304]
[1673742418665,0.482699,20934.0,20932.0,0.00479304]
[1673742418914,0.005,20934.0,20932.0,0.39448203]
[1673742419682,0.006,20933.0,20932.0,0.39448203]
[1673742419901,0.006,20933.0,20932.0,0.87221103]
[1673742420192,0.006,20933.0,20932.0,0.97021103]
[1673742420461,0.006,20933.0,20932.0,1.44794803]
[1673742420713,0.00553005,20935.0,20932.0,0.97582404]
[1673742420979,0.00553005,20935.0,20934.0,0.1278]
[1673742421253,0.00553005,20935.0,20934.0,0.27116]
[1673742421507,0.00553005,20935.0,20934.0,1.704233]
[1673742422033,0.00544454,20936.0,20935.0,0.17613286]
[1673742422316,0.00544454,20936.0,20935.0,1.27382286]
[1673742422832,0.00544454,20936.0,20935.0,1.17382286]
[1673742423086,0.05244454,20936.0,20935.0,1.17682286]
[1673742423348,0.05244454,20936.0,20935.0,1.71536398]
[1673742423616,0.05244454,20936.0,20935.0,1.17682286]
[1673742424929,0.05244454,20936.0,20935.0,1.5587527]
[1673742425216,0.05244454,20936.0,20935.0,1.5507527]
[1673742425433,0.05244454,20936.0,20935.0,1.4239527]
[1673742425704,0.05244454,20936.0,20935.0,0.4530627]
[1673742427005,0.05244454,20936.0,20935.0,0.07113286]
[1673742427297,0.05244454,20936.0,20935.0,0.08668686]
[1673742428354,0.05244454,20936.0,20935.0,0.56435486]
[1673742428628,0.05244454,20936.0,20935.0,1.07308675]
[1673742429138,0.05244454,20936.0,20935.0,0.56435486]
[1673742429394,0.05244454,20936.0,20935.0,1.16982286]
[1673742429884,0.05244454,20936.0,20935.0,1.56982286]
[1673742430150,0.05244454,20936.0,20935.0,1.16982286]
[1673742430409,0.05244454,20936.0,20935.0,1.44661349]
[1673742430918,0.05244454,20936.0,20935.0,1.43105949]
[1673742431175,0.05244454,20936.0,20935.0,1.44661349]
[1673742431425,0.05244454,20936.0,20935.0,1.43105949]
[1673742431688,0.05244454,20936.0,20935.0,1.44661349]
[1673742433743,0.05244454,20936.0,20935.0,0.97472286]
[1673742433994,0.05244454,20936.0,20935.0,1.11749824]
[1673742434508,0.00598975,20937.0,20936.0,0.05555296]
[1673742434768,0.00598975,20937.0,20936.0,2.61496812]
[1673742435015,0.00598975,20937.0,20936.0,2.63051912]
[1673742435271,0.00598975,20937.0,20936.0,2.41675083]
[1673742435546,0.00598975,20937.0,20936.0,2.76976651]
[1673742435792,0.02798975,20937.0,20936.0,2.76976651]
[1673742436300,0.02798975,20937.0,20936.0,2.48474213]
[1673742436807,0.02798975,20937.0,20936.0,2.60892814]
[1673742437061,0.02798975,20937.0,20936.0,2.30892814]
[1673742437315,0.02798975,20937.0,20936.0,2.85027026]
[1673742437569,0.02798975,20937.0,20936.0,2.70769335]
[1673742437824,0.02798975,20937.0,20936.0,2.79397181]
[1673742438069,0.02798975,20937.0,20936.0,3.15027026]
[1673742438842,0.02798975,20937.0,20936.0,2.86522659]
[1673742439098,0.02798975,20937.0,20936.0,3.15029392]
[1673742439617,0.02798975,20937.0,20936.0,2.85029392]
[1673742439869,0.02798975,20937.0,20936.0,2.49399547]
[1673742440124,0.02798975,20937.0,20936.0,2.85029392]
[1673742440394,0.02798975,20937.0,20936.0,2.49399547]
[1673742440694,0.02798975,20937.0,20936.0,2.85029392]
[1673742441184,0.53297356,20937.0,20936.0,2.85029392]
[1673742441435,0.53297356,20937.0,20936.0,2.86522659]
[1673742441951,0.53297356,20937.0,20936.0,2.50892814]
[1673742442201,0.00636906,20941.0,20940.0,0.39593086]
[1673742442464,0.00636906,20941.0,20940.0,2.41743978]
[1673742442725,0.00636906,20941.0,20940.0,1.36657586]
[1673742443291,0.65846768,20941.0,20940.0,1.36657586]
[1673742443497,0.65346768,20941.0,20940.0,0.53493086]
[1673742443750,0.65346768,20941.0,20940.0,0.39593086]
[1673742443999,0.65346768,20941.0,20940.0,0.53593086]
[1673742444767,0.65346768,20941.0,20940.0,0.39593086]
[1673742445019,0.65346768,20941.0,20940.0,0.53493086]
[1673742445269,0.65346768,20941.0,20940.0,0.39593086]
[1673742445516,0.00136906,20941.0,20940.0,0.52593086]
[1673742445764,0.00136906,20941.0,20940.0,0.39593086]
[1673742446025,0.00136906,20941.0,20940.0,0.45293086]
[1673742446293,0.00136906,20941.0,20940.0,0.89472015]
[1673742447280,0.96045054,20943.0,20941.0,0.4883436]
[1673742448444,0.00544454,20943.0,20941.0,0.4883436]
[1673742448625,0.01044454,20943.0,20941.0,0.4913436]
[1673742449145,0.01044454,20943.0,20942.0,0.40833398]
[1673742450111,0.00544454,20943.0,20942.0,0.40833398]
[1673742450387,0.00544454,20943.0,20942.0,0.40863136]
[1673742451186,0.01044454,20943.0,20942.0,0.41163136]
[1673742451698,0.01044454,20943.0,20942.0,1.38218336]
[1673742452486,0.01044454,20943.0,20942.0,0.97384938]
[1673742452999,0.01044454,20943.0,20942.0,1.38675571]
[1673742454310,0.01044454,20943.0,20942.0,0.97384938]
[1673742454851,0.01044454,20943.0,20942.0,1.41637035]
[1673742455099,0.01044454,20943.0,20942.0,1.11637035]
[1673742455594,0.00544454,20943.0,20942.0,1.21337035]
[1673742455847,0.01144454,20943.0,20942.0,1.47737477]
[1673742456162,0.00544454,20943.0,20942.0,1.47737477]
[1673742456373,0.00544454,20943.0,20942.0,0.50682277]
[1673742456638,0.00544454,20943.0,20942.0,0.52235177]
[1673742456882,0.00544454,20943.0,20942.0,0.66135177]
[1673742457389,0.00544454,20943.0,20942.0,0.79135177]
[1673742457901,0.00544454,20943.0,20942.0,1.38236535]
[1673742458410,0.00544454,20943.0,20942.0,1.82302735]
[1673742458662,0.00544454,20943.0,20942.0,2.03680881]
[1673742458936,0.00544454,20943.0,20942.0,1.34551835]
[1673742459453,0.00544454,20943.0,20942.0,1.20299738]
[1673742459710,0.00544454,20943.0,20942.0,1.18746838]
[1673742460222,0.00544454,20943.0,20942.0,0.70995938]
[1673742460481,0.00544454,20943.0,20942.0,1.18746838]
[1673742460770,0.00544454,20943.0,20942.0,1.20299738]
[1673742461037,0.00544454,20943.0,20942.0,1.34551835]
[1673742461299,0.00544454,20943.0,20942.0,1.20299738]
[1673742461569,0.00544454,20943.0,20942.0,0.70995938]
[1673742465925,0.00544454,20943.0,20942.0,0.709662]
[1673742467485,0.00544454,20943.0,20942.0,0.85218297]
[1673742467754,0.00544454,20943.0,20942.0,0.86771197]
[1673742468459,0.00544454,20943.0,20942.0,0.85218297]
[1673742468753,0.00544454,20943.0,20942.0,0.709662]
[1673742469291,0.0053737,20943.0,20942.0,0.70995938]
[1673742469593,0.0053737,20943.0,20942.0,0.85248035]
[1673742469854,0.0053737,20943.0,20942.0,0.709662]
[1673742470147,0.65983542,20943.0,20942.0,0.269]
[1673742470422,1.05739242,20943.0,20942.0,0.269]
[1673742470674,1.53487842,20943.0,20942.0,0.269]
[1673742470935,2.01236442,20943.0,20942.0,0.269]
[1673742471898,1.5577127,20943.0,20942.0,0.269]
[1673742472164,1.8662127,20943.0,20942.0,0.269]
[1673742473175,1.8662127,20943.0,20940.0,0.39593086]
[1673742473176,2.00786486,20943.0,20940.0,0.39593086]
[1673742473439,0.077,20941.0,20940.0,0.39593086]
[1673742473697,1.838253,20941.0,20940.0,0.39593086]
[1673742474465,1.838253,20941.0,20940.0,0.39893086]
[1673742474721,2.138253,20941.0,20940.0,0.39893086]
[1673742474965,1.838253,20941.0,20940.0,0.39893086]
[1673742475212,2.48985495,20941.0,20940.0,0.39593086]
[1673742475475,2.48985495,20941.0,20940.0,0.45793086]
[1673742475716,2.78985495,20941.0,20940.0,0.45793086]
[1673742476224,2.138253,20941.0,20940.0,0.45793086]
[1673742476492,3.00246184,20941.0,20940.0,0.45793086]
[1673742476731,4.11494008,20941.0,20940.0,0.059]
[1673742476982,4.25659224,20941.0,20940.0,0.059]
[1673742477244,4.25659224,20941.0,20937.0,0.86961874]
[1673742477245,0.1,20940.0,20937.0,0.86961874]
[1673742477496,0.1552,20938.0,20937.0,0.86961874]
[1673742477763,1.252957,20938.0,20937.0,0.86961874]
[1673742478096,1.261457,20938.0,20937.0,0.86961874]
[1673742478276,1.361457,20938.0,20937.0,0.86961874]
[1673742478532,1.956257,20938.0,20937.0,0.86961874]
[1673742478782,2.32577318,20938.0,20937.0,0.86961874]
[1673742479037,1.863257,20938.0,20937.0,0.86961874]
[1673742479350,2.040857,20938.0,20937.0,0.86961874]
[1673742479577,2.033857,20938.0,20937.0,0.86961874]
[1673742479852,2.051857,20938.0,20937.0,0.87261874]
[1673742480384,2.70585884,20938.0,20937.0,0.87261874]
[1673742481348,2.051857,20938.0,20937.0,0.87261874]
[1673742482637,2.58946819,20938.0,20937.0,0.87261874]
[1673742482903,2.29416819,20938.0,20937.0,0.87261874]
[1673742485495,1.756557,20938.0,20937.0,0.87261874]
[1673742485776,2.056557,20938.0,20937.0,0.87261874]
[1673742486017,2.48259115,20938.0,20937.0,0.87261874]
[1673742486803,2.77739115,20938.0,20937.0,0.87261874]
[1673742487154,4.07739116,20938.0,20937.0,0.30091031]
[1673742487412,0.1,20937.0,20936.0,0.05555296]
[1673742487667,1.52952117,20937.0,20936.0,0.05555296]
[1673742487934,2.78476717,20937.0,20936.0,0.05555296]
[1673742488694,2.78476717,20937.0,20935.0,0.00083286]
[1673742488940,0.774657,20936.0,20935.0,0.00083286]
[1673742489197,2.61255117,20936.0,20935.0,0.00083286]
[1673742489752,2.90835117,20936.0,20935.0,0.00083286]
[1673742490212,0.1,20935.0,20933.0,0.01317729]
[1673742490455,0.954219,20934.0,20933.0,0.01317729]
[1673742490713,3.16139417,20934.0,20933.0,0.01317729]
[1673742491203,3.38729201,20934.0,20933.0,0.01317729]
[1673742491454,2.92769201,20934.0,20933.0,0.01317729]
[1673742491724,2.49269201,20934.0,20933.0,0.01317729]
[1673742491965,2.62869201,20934.0,20933.0,0.01317729]
[1673742492214,1.928692,20934.0,20933.0,0.01317729]
[1673742492458,2.0995558,20934.0,20933.0,0.01317729]
[1673742492705,2.3995558,20934.0,20933.0,0.01317729]
[1673742493219,2.85143937,20934.0,20933.0,0.01317729]
[1673742493469,2.33783937,20934.0,20933.0,0.01317729]
[1673742493708,1.363901,20934.0,20933.0,0.01317729]
[1673742493953,1.228901,20934.0,20933.0,0.65983888]
[1673742494199,1.93596284,20934.0,20933.0,0.01317729]
[1673742494444,1.80096284,20934.0,20933.0,0.01317729]
[1673742494962,1.80946284,20934.0,20933.0,0.01317729]
[1673742495200,2.10946284,20934.0,20933.0,0.01317729]
[1673742495446,2.24246284,20934.0,20933.0,0.01317729]
[1673742495694,2.54894162,20934.0,20933.0,0.01317729]
[1673742495937,1.94246284,20934.0,20933.0,0.01317729]
[1673742496187,1.94246284,20934.0,20933.0,0.6743352]
[1673742496188,0.337019,20934.0,20933.0,0.6743352]
[1673742496455,0.133,20934.0,20933.0,0.20390324]
[1673742496973,0.133,20934.0,20933.0,0.50645329]
[1673742497222,0.51622896,20939.0,20933.0,0.98416729]
[1673742497469,0.006,20934.0,20933.0,1.62491425]
[1673742497718,0.006,20934.0,20933.0,1.54486231]
[1673742497974,0.47101428,20938.0,20933.0,1.06176129]
[1673742498218,0.47756,20940.0,20933.0,1.05220529]
[1673742498219,0.014,20934.0,20933.0,1.05220529]
[1673742498474,0.008,20934.0,20933.0,1.06766229]
[1673742498733,0.008,20934.0,20933.0,1.44526229]
[1673742498973,0.57619542,20941.0,20933.0,1.44526229]
[1673742498974,0.57619542,20941.0,20934.0,0.1]
[1673742499219,0.57619542,20941.0,20936.0,1.032886]
[1673742499468,0.57619542,20941.0,20937.0,0.19072595]
[1673742499713,0.57619542,20941.0,20937.0,0.66833595]
[1673742499965,0.0085,20940.0,20937.0,0.66833595]
[1673742500212,0.0085,20940.0,20937.0,0.47761]
[1673742500709,0.0085,20940.0,20937.0,0.47961]
[1673742500963,0.0085,20940.0,20936.0,0.555243]
[1673742501216,0.007,20940.0,20938.0,0.54116498]
[1673742501461,0.0085,20939.0,20938.0,0.54116498]
[1673742502932,0.477535,20941.0,20938.0,0.54116498]
[1673742502933,0.0085,20940.0,20938.0,0.54116498]
[1673742503192,0.014,20939.0,20938.0,0.54716498]
[1673742503453,0.0085,20939.0,20938.0,0.54116498]
[1673742503702,0.0225,20939.0,20938.0,0.54716498]
[1673742503948,0.0085,20939.0,20938.0,0.54116498]
[1673742504191,0.477535,20941.0,20938.0,0.54616498]
[1673742504192,0.0155,20940.0,20938.0,0.54616498]
[1673742505205,0.0085,20940.0,20938.0,0.54116498]
[1673742505468,0.014,20939.0,20938.0,0.54716498]
[1673742505721,0.0225,20939.0,20938.0,0.54716498]
[1673742505971,0.0225,20939.0,20938.0,0.55216498]
[1673742506721,0.0085,20939.0,20938.0,0.54116498]
[1673742506959,0.0085,20940.0,20938.0,0.54116498]
[1673742507245,0.486059,20940.0,20938.0,0.54116498]
[1673742507761,0.320157,20939.0,20938.0,0.54116498]
[1673742508021,0.0085,20939.0,20938.0,0.54116498]
[1673742508559,0.0085,20939.0,20938.0,0.54716498]
[1673742508810,0.342657,20939.0,20938.0,0.54116498]
[1673742509062,0.356657,20939.0,20938.0,0.54716498]
[1673742509316,0.0365,20939.0,20938.0,0.54716498]
[1673742510373,0.03736,20939.0,20938.0,0.54716498]
[1673742511138,0.02886,20939.0,20938.0,0.34162595]
[1673742511396,0.02886,20939.0,20938.0,0.744044]
[1673742511896,0.02886,20939.0,20938.0,1.221644]
[1673742512149,0.02886,20939.0,20938.0,1.121644]
[1673742513995,0.02886,20939.0,20938.0,1.221644]
[1673742514253,0.02886,20939.0,20938.0,1.299244]
[1673742516426,0.64230582,20943.0,20939.0,0.11911872]
[1673742516614,0.64230582,20943.0,20940.0,0.20626095]
[1673742516868,0.64230582,20943.0,20941.0,0.0773]
[1673742517117,0.64230582,20943.0,20942.0,0.082832]
[1673742517373,0.65080582,20943.0,20942.0,1.022318]
[1673742517619,0.64230582,20943.0,20942.0,1.022318]
[1673742518110,0.66930582,20943.0,20942.0,1.037849]
[1673742518384,0.64230582,20943.0,20942.0,1.037849]
[1673742518648,0.66930582,20943.0,20942.0,1.033318]
[1673742518902,0.66930582,20943.0,20942.0,0.011]
[1673742519161,1.32447501,20943.0,20942.0,0.011]
[1673742519418,0.67780582,20943.0,20942.0,0.66451446]
[1673742522543,1.15529182,20943.0,20942.0,0.66451446]
[1673742523584,1.15529182,20943.0,20942.0,0.011]
[1673742523850,1.95293482,20943.0,20942.0,0.011]
[1673742524860,2.50844679,20943.0,20942.0,0.011]
[1673742525493,2.50976679,20943.0,20942.0,0.011]
[1673742529476,2.80976679,20943.0,20942.0,0.011]
[1673742529977,2.25425482,20943.0,20942.0,0.011]
[1673742530225,2.59196708,20943.0,20942.0,0.011]
[1673742530467,2.25425482,20943.0,20942.0,0.011]
[1673742532530,2.68675482,20943.0,20942.0,0.011]
[1673742533358,2.76435482,20943.0,20942.0,0.011]
[1673742533621,3.06435482,20943.0,20942.0,0.0001]
[1673742533879,3.81459019,20943.0,20935.0,0.55031362]
[1673742534171,0.14139964,20941.0,20935.0,0.55031362]
[1673742534432,2.530449,20940.0,20935.0,0.55031362]
[1673742534695,0.795519,20939.0,20933.0,0.01317729]
[1673742534975,1.761511,20938.0,20934.0,0.54783847]
[1673742535254,0.495519,20937.0,20935.0,0.002]
[1673742535536,1.283949,20936.0,20934.0,0.54783847]
[1673742535864,0.195519,20935.0,20934.0,0.54783847]
[1673742536119,0.195519,20935.0,20933.0,0.01317729]
[1673742536120,1.159355,20935.0,20933.0,0.01317729]
[1673742536374,0.320157,20934.0,20933.0,0.01317729]
[1673742536629,0.628657,20934.0,20933.0,0.01517729]
[1673742536896,1.584039,20934.0,20933.0,0.01317729]
[1673742537157,1.284039,20934.0,20933.0,0.01317729]
[1673742537412,1.361639,20934.0,20933.0,0.01317729]
[1673742537660,1.9636269,20934.0,20933.0,0.01517729]
[1673742537912,2.2486269,20934.0,20933.0,0.01317729]
[1673742538174,2.2486269,20934.0,20933.0,0.01517729]
[1673742538175,2.2636269,20934.0,20933.0,0.01517729]
[1673742538428,2.2486269,20934.0,20933.0,0.01317729]
[1673742539228,1.361639,20934.0,20933.0,0.01317729]
[1673742539485,0.344657,20934.0,20933.0,0.01517729]
[1673742539713,0.0085,20934.0,20933.0,0.01317729]
[1673742539986,0.337657,20934.0,20933.0,0.01517729]
[1673742540218,0.337657,20934.0,20933.0,0.01317729]
[1673742540219,0.328657,20934.0,20933.0,0.01317729]
[1673742540488,0.0245,20934.0,20933.0,0.01517729]
[1673742540740,0.0085,20934.0,20933.0,0.01317729]
[1673742541006,0.0245,20934.0,20933.0,0.01517729]
[1673742541810,0.0245,20934.0,20933.0,0.49012647]
[1673742543625,1.51225674,20934.0,20933.0,0.01517729]
[1673742543882,2.022649,20934.0,20933.0,0.01517729]
[1673742544422,2.177049,20934.0,20933.0,0.01517729]
[1673742545227,2.86104901,20934.0,20933.0,0.01317729]
[1673742545446,2.8713784,20934.0,20933.0,0.01317729]
[1673742545717,2.7938784,20934.0,20933.0,0.01317729]
[1673742545993,2.9288784,20934.0,20933.0,0.01317729]
[1673742546242,2.9578784,20934.0,20933.0,0.01317729]
[1673742546494,2.39287839,20934.0,20933.0,0.01317729]
[1673742547524,1.918549,20934.0,20933.0,0.01317729]
[1673742547773,2.39585591,20934.0,20933.0,0.01317729]
[1673742548297,2.09585591,20934.0,20933.0,0.01317729]
[1673742549605,1.48705491,20934.0,20933.0,0.01317729]
[1673742549849,0.932848,20934.0,20933.0,0.01317729]
[1673742550370,0.455157,20934.0,20933.0,0.48439003]
[1673742550871,0.463657,20934.0,20933.0,0.48439003]
[1673742551397,0.1435,20934.0,20933.0,0.48439003]
[1673742551652,0.463657,20934.0,20933.0,0.01317729]
[1673742551910,1.84062189,20934.0,20933.0,0.01317729]
[1673742552159,2.31831289,20934.0,20933.0,0.01317729]
[1673742554210,2.01831289,20934.0,20933.0,0.01317729]
[1673742554769,1.419039,20934.0,20933.0,0.01317729]
[1673742555063,1.419039,20934.0,20933.0,0.54132714]
[1673742555279,0.339019,20934.0,20933.0,0.54132714]
[1673742555532,0.135,20934.0,20933.0,0.27120324]
[1673742555783,0.135,20934.0,20933.0,1.12876729]
[1673742556295,0.135,20934.0,20933.0,1.64019103]
[1673742556552,0.59655116,20937.0,20933.0,1.64019103]
[1673742556812,0.50823103,20936.0,20933.0,1.00231503]
[1673742557070,0.49337192,20935.0,20933.0,0.52460103]
[1673742557582,0.135,20934.0,20933.0,0.52660103]
[1673742557846,0.49337192,20935.0,20933.0,0.52460103]
[1673742558098,0.0085,20934.0,20933.0,0.53960103]
[1673742558360,0.0085,20934.0,20933.0,0.52460103]
[1673742558643,0.0085,20934.0,20933.0,0.53960103]
[1673742558644,0.02240911,20934.0,20933.0,0.53960103]
[1673742558911,0.02240911,20934.0,20933.0,0.68809908]
[1673742559163,0.02340911,20934.0,20933.0,0.02817729]
[1673742559422,0.02340911,20934.0,20933.0,0.01317729]
[1673742559682,0.03840911,20934.0,20933.0,0.02817729]
[1673742559948,0.03840911,20934.0,20933.0,0.54742106]
[1673742560731,0.03840911,20934.0,20933.0,0.02817729]
[1673742563324,0.03840911,20934.0,20933.0,0.51180357]
[1673742566382,0.03,20934.0,20933.0,0.52736157]
[1673742566636,0.03,20934.0,20933.0,0.51180357]
[1673742566890,0.03,20934.0,20933.0,0.04373929]
[1673742567139,0.03,20934.0,20933.0,0.71176999]
[1673742567606,0.03,20934.0,20933.0,1.17392199]
[1673742567905,0.03,20934.0,20933.0,1.18948399]
[1673742568440,0.03,20934.0,20933.0,1.17392199]
[1673742568699,0.03,20934.0,20933.0,0.02817729]
[1673742568700,0.08531,20934.0,20933.0,0.02817729]
[1673742568963,0.58340904,20934.0,20933.0,0.02817729]
[1673742569208,0.90356604,20934.0,20933.0,0.02817729]
[1673742569460,1.38125704,20934.0,20933.0,0.02817729]
[1673742569710,1.85894804,20934.0,20933.0,0.02817729]
[1673742570494,2.15894804,20934.0,20933.0,0.02817729]
[1673742571003,1.85894804,20934.0,20933.0,0.02817729]
[1673742572381,1.369349,20934.0,20933.0,0.02817729]
[1673742572636,2.123749,20934.0,20933.0,0.02817729]
[1673742572946,2.61915279,20934.0,20933.0,0.02817729]
[1673742573182,3.01166144,20934.0,20933.0,0.02817729]
[1673742573705,2.76956197,20934.0,20933.0,0.00329811]
[1673742573993,3.01864062,20934.0,20933.0,0.00529811]
[1673742574268,2.34282765,20934.0,20933.0,0.00529811]
[1673742574564,2.47782765,20934.0,20933.0,0.00729811]
[1673742574818,3.24905333,20934.0,20933.0,0.00729811]
[1673742575086,3.91963528,20934.0,20933.0,0.00729811]
[1673742575597,3.93519242,20934.0,20933.0,0.00729811]
[1673742576934,4.94279678,20934.0,20933.0,0.00729811]
[1673742577785,4.46869461,20934.0,20933.0,0.00729811]
[1673742578044,3.46034798,20934.0,20933.0,0.00729811]
[1673742578875,3.24840256,20934.0,20933.0,0.00729811]
[1673742579646,3.16041334,20934.0,20933.0,0.00729811]
[1673742580211,2.94840256,20934.0,20933.0,0.00729811]
[1673742580472,3.71785619,20934.0,20933.0,0.00729811]
[1673742581010,4.26566717,20934.0,20933.0,0.00729811]
[1673742581291,3.91508944,20934.0,20933.0,0.00729811]
[1673742581545,3.91507493,20934.0,20933.0,0.00729811]
[1673742581796,3.91504184,20934.0,20933.0,0.00729811]
[1673742582248,3.71785619,20934.0,20933.0,0.00729811]
[1673742582550,3.91339442,20934.0,20933.0,0.00729811]
[1673742582773,4.26397215,20934.0,20933.0,0.00729811]
[1673742583574,3.19451852,20934.0,20933.0,0.00729811]
[1673742583855,3.23700397,20934.0,20933.0,0.00729811]
[1673742584123,3.02515519,20934.0,20933.0,0.00729811]
[1673742584629,2.8839219,20934.0,20933.0,0.00729811]
[1673742585672,2.66574901,20934.0,20933.0,0.00729811]
[1673742585957,3.35169996,20934.0,20933.0,0.00729811]
[1673742586214,3.63435351,20934.0,20933.0,0.00729811]
[1673742588276,4.28055391,20934.0,20933.0,0.00729811]
[1673742588552,4.28055391,20934.0,20933.0,0.00294011]
[1673742588553,4.95389914,20934.0,20933.0,0.00294011]
[1673742588823,4.89952141,20934.0,20933.0,0.00294011]
[1673742589876,5.3767231,20934.0,20933.0,0.00294011]
[1673742590670,5.47281638,20934.0,20933.0,1.1e-07]
[1673742590925,0.1,20933.0,20931.0,0.01317729]
[1673742591178,2.32723712,20932.0,20931.0,0.01317729]
[1673742591431,4.06038719,20932.0,20931.0,0.01317729]
[1673742591943,3.77814951,20932.0,20931.0,0.01317729]
[1673742592192,4.06038719,20932.0,20931.0,0.01417729]
[1673742592484,4.88664123,20932.0,20929.0,0.01378399]
[1673742592717,0.15900061,20930.0,20929.0,0.01378399]
[1673742592993,2.23363861,20930.0,20929.0,0.01378399]
[1673742593216,3.23363862,20930.0,20929.0,0.01378399]
[1673742593494,2.79256801,20930.0,20929.0,0.01378399]
[1673742593769,2.41496801,20930.0,20929.0,0.01478399]
[1673742593993,2.41496801,20930.0,20929.0,0.20550994]
[1673742594328,1.714968,20930.0,20929.0,0.01478399]
[1673742594754,1.729968,20930.0,20929.0,0.02378399]
[1673742595261,2.029968,20930.0,20929.0,0.02378399]
[1673742595528,2.94297566,20930.0,20929.0,0.02378399]
[1673742595777,2.36413804,20930.0,20929.0,0.02378399]
[1673742597336,1.166085,20930.0,20929.0,0.69303831]
[1673742598418,1.166085,20930.0,20929.0,0.02378399]
[1673742598419,1.75804058,20930.0,20929.0,0.02378399]
[1673742598660,2.05804058,20930.0,20929.0,0.02378399]
[1673742598926,2.06654058,20930.0,20929.0,0.02378399]
[1673742599177,2.32097144,20930.0,20929.0,0.02378399]
[1673742599937,2.06654058,20930.0,20929.0,0.02378399]
[1673742600194,1.76654058,20930.0,20929.0,0.02378399]
[1673742601718,1.76591958,20930.0,20929.0,0.02378399]
[1673742602496,1.57102158,20930.0,20929.0,0.02378399]
[1673742603000,1.89117358,20930.0,20929.0,0.02378399]
[1673742603295,2.19117358,20930.0,20929.0,0.02378399]
[1673742604046,2.70519471,20930.0,20926.0,0.01450529]
[1673742604277,0.0083618,20928.0,20926.0,0.01450529]
[1673742604531,0.9384243,20927.0,20926.0,0.01450529]